[Event "*** Titled Tuesday Blitz AM"]
[Site "Chess.com"]
[Date "2020.01.07"]
[Round "3"]
[White "Usurpov"]
[Black "manmanlai1"]
[Result "0-1"]
[WhiteElo "2534"]
[BlackElo "2343"]
[TimeControl "180+2"]
[EndTime "9:33:31 PST"]
[Termination "manmanlai1 won by resignation"]

1. e4 {[%clk 0:03:01.9]} 1... c6 {[%clk 0:03:00.7]} 2. d4 {[%clk 0:03:02.4]}
2... d5 {[%clk 0:03:02.2]} 3. Nc3 {[%clk 0:03:04]} 3... dxe4 {[%clk 0:03:03.1]}
4. Nxe4 {[%clk 0:03:05.9]} 4... Nf6 {[%clk 0:03:04.5]} 5. Nxf6+ {[%clk 0:03:07]}
5... exf6 {[%clk 0:03:06.4]} 6. c3 {[%clk 0:03:08.3]} 6... Bd6 {[%clk
0:03:07.5]} 7. Bd3 {[%clk 0:03:09]} 7... O-O {[%clk 0:03:08.4]} 8. Qc2 {[%clk
0:03:10.6]} 8... Re8+ {[%clk 0:03:05.7]} 9. Ne2 {[%clk 0:03:11.6]} 9... h5
{[%clk 0:03:07.2]} 10. Bd2 {[%clk 0:03:04.9]} 10... Nd7 {[%clk 0:03:00.2]} 11.
O-O-O {[%clk 0:03:04.6]} 11... Nf8 {[%clk 0:03:01.5]} 12. Kb1 {[%clk 0:03:01.5]}
12... Be6 {[%clk 0:02:58.4]} 13. Nf4 {[%clk 0:02:57.8]} 13... Bxf4 {[%clk
0:02:51.9]} 14. Bxf4 {[%clk 0:02:58.1]} 14... b5 {[%clk 0:02:52.9]} 15. Be4
{[%clk 0:02:37.3]} 15... Bd5 {[%clk 0:02:51.2]} 16. Rhe1 {[%clk 0:02:27.4]}
16... a5 {[%clk 0:02:51]} 17. Bc1 {[%clk 0:02:18.1]} 17... a4 {[%clk 0:02:51.1]}
18. f3 {[%clk 0:02:15.5]} 18... g6 {[%clk 0:02:50.6]} 19. Bxd5 {[%clk
0:02:06.7]} 19... Qxd5 {[%clk 0:02:48.3]} 20. Bd2 {[%clk 0:02:00.5]} 20... Nd7
{[%clk 0:02:41.6]} 21. Rxe8+ {[%clk 0:01:57.6]} 21... Rxe8 {[%clk 0:02:42.1]}
22. Re1 {[%clk 0:01:59.5]} 22... Rxe1+ {[%clk 0:02:42.7]} 23. Bxe1 {[%clk
0:02:01.4]} 23... f5 {[%clk 0:02:43.1]} 24. Bg3 {[%clk 0:01:57.8]} 24... Qe6
{[%clk 0:02:42.2]} 25. Qd2 {[%clk 0:01:57.2]} 25... Kh7 {[%clk 0:02:31.3]} 26.
Qe1 {[%clk 0:01:51.4]} 26... Qc4 {[%clk 0:02:25]} 27. Qd2 {[%clk 0:01:42.4]}
27... Nb6 {[%clk 0:02:21.9]} 28. Bd6 {[%clk 0:01:36.5]} 28... Qf1+ {[%clk
0:02:16.8]} 29. Kc2 {[%clk 0:01:36.5]} 29... Nc4 {[%clk 0:02:17.3]} 0-1

[Event "*** Titled Tuesday Blitz AM"]
[Site "Chess.com"]
[Date "2020.01.07"]
[Round "3"]
[White "INLOVEWITHF"]
[Black "BocharovD"]
[Result "0-1"]
[WhiteElo "2458"]
[BlackElo "2758"]
[TimeControl "180+2"]
[EndTime "9:33:32 PST"]
[Termination "BocharovD won by resignation"]

1. e4 {[%clk 0:03:01.9]} 1... c5 {[%clk 0:03:00.7]} 2. Nf3 {[%clk 0:03:02.3]}
2... d6 {[%clk 0:03:01.4]} 3. d4 {[%clk 0:03:03.2]} 3... cxd4 {[%clk 0:03:03.3]}
4. Nxd4 {[%clk 0:03:04.4]} 4... Nf6 {[%clk 0:03:04.9]} 5. Nc3 {[%clk 0:03:05.7]}
5... a6 {[%clk 0:03:06.5]} 6. Bg5 {[%clk 0:03:06.6]} 6... Nbd7 {[%clk
0:03:07.6]} 7. Bc4 {[%clk 0:03:03.2]} 7... Qb6 {[%clk 0:03:07.8]} 8. Bb3 {[%clk
0:02:49.7]} 8... e6 {[%clk 0:03:04.7]} 9. O-O {[%clk 0:02:46.8]} 9... Be7 {[%clk
0:03:05.6]} 10. Bxe6 {[%clk 0:02:37.9]} 10... fxe6 {[%clk 0:03:06]} 11. Nxe6
{[%clk 0:02:39.8]} 11... Kf7 {[%clk 0:02:54]} 12. Nd5 {[%clk 0:02:26.4]} 12...
Nxd5 {[%clk 0:02:50.1]} 13. Qxd5 {[%clk 0:02:28.3]} 13... Nf6 {[%clk 0:02:48.6]}
14. Nd8+ {[%clk 0:01:54.5]} 14... Ke8 {[%clk 0:02:49]} 15. Qf7+ {[%clk
0:01:53.8]} 15... Kxd8 {[%clk 0:02:49.4]} 16. e5 {[%clk 0:01:53.3]} 16... Rf8
{[%clk 0:02:20.7]} 17. Qxg7 {[%clk 0:01:49.1]} 17... Rg8 {[%clk 0:02:18.9]} 18.
exf6 {[%clk 0:01:29.1]} 18... Rxg7 {[%clk 0:02:16.2]} 19. fxg7 {[%clk 0:01:31]}
19... Be6 {[%clk 0:02:17.1]} 20. Rfe1 {[%clk 0:01:14.6]} 20... Bxg5 {[%clk
0:02:14.6]} 21. Rxe6 {[%clk 0:01:13.6]} 21... Kd7 {[%clk 0:02:15.8]} 22. Rae1
{[%clk 0:01:11.1]} 22... Rg8 {[%clk 0:02:16.5]} 23. h4 {[%clk 0:01:04.1]} 23...
Bxh4 {[%clk 0:02:14.9]} 24. g3 {[%clk 0:01:05.7]} 24... Rxg7 {[%clk 0:02:15.4]}
0-1

[Event "*** Titled Tuesday Blitz AM"]
[Site "Chess.com"]
[Date "2020.01.07"]
[Round "3"]
[White "MartinMatthiesen"]
[Black "Yaacovn"]
[Result "1-0"]
[WhiteElo "2539"]
[BlackElo "2808"]
[TimeControl "180+2"]
[EndTime "9:33:44 PST"]
[Termination "MartinMatthiesen won by resignation"]

1. d4 {[%clk 0:03:01.9]} 1... Nf6 {[%clk 0:03:00.6]} 2. c4 {[%clk 0:03:02.2]}
2... e5 {[%clk 0:03:01.7]} 3. dxe5 {[%clk 0:03:02.7]} 3... Ne4 {[%clk 0:03:03]}
4. a3 {[%clk 0:03:02.7]} 4... d6 {[%clk 0:03:03.8]} 5. Nf3 {[%clk 0:03:03.1]}
5... Bf5 {[%clk 0:03:03.9]} 6. g3 {[%clk 0:02:26.5]} 6... Nc6 {[%clk 0:03:04.2]}
7. exd6 {[%clk 0:02:25.4]} 7... Bxd6 {[%clk 0:03:04.8]} 8. Bg2 {[%clk
0:02:24.6]} 8... Qf6 {[%clk 0:03:05.4]} 9. O-O {[%clk 0:02:18.5]} 9... O-O-O
{[%clk 0:03:06.2]} 10. Qe1 {[%clk 0:02:10.4]} 10... g5 {[%clk 0:03:03.5]} 11.
Nfd2 {[%clk 0:02:07.7]} 11... Rhe8 {[%clk 0:03:01.9]} 12. Nxe4 {[%clk
0:02:07.2]} 12... Bxe4 {[%clk 0:03:03.8]} 13. Nc3 {[%clk 0:02:05.6]} 13... Bxg2
{[%clk 0:03:03.3]} 14. Kxg2 {[%clk 0:02:07.5]} 14... Nd4 {[%clk 0:02:59.6]} 15.
Qd1 {[%clk 0:02:02.9]} 15... Rxe2 {[%clk 0:02:55.7]} 16. Bxg5 {[%clk 0:01:55.5]}
16... Qf3+ {[%clk 0:02:50.8]} 17. Kg1 {[%clk 0:01:56.4]} 17... Qg4 {[%clk
0:01:11.5]} 18. Bxd8 {[%clk 0:01:45.8]} 18... Nf3+ {[%clk 0:01:11.5]} 19. Kg2
{[%clk 0:01:46.4]} 1-0

[Event "*** Titled Tuesday Blitz AM"]
[Site "Chess.com"]
[Date "2020.01.07"]
[Round "3"]
[White "Svet99"]
[Black "ViennaRocket"]
[Result "0-1"]
[WhiteElo "2143"]
[BlackElo "2385"]
[TimeControl "180+2"]
[EndTime "9:33:49 PST"]
[Termination "ViennaRocket won by resignation"]

1. c4 {[%clk 0:03:01.9]} 1... f5 {[%clk 0:03:00.2]} 2. Nc3 {[%clk 0:03:01.1]}
2... Nf6 {[%clk 0:03:01.7]} 3. d4 {[%clk 0:03:00.1]} 3... g6 {[%clk 0:03:02.4]}
4. Nf3 {[%clk 0:02:54.7]} 4... Bg7 {[%clk 0:03:03.4]} 5. g3 {[%clk 0:02:55.9]}
5... O-O {[%clk 0:03:04.3]} 6. Bg2 {[%clk 0:02:57.1]} 6... d6 {[%clk 0:03:05.6]}
7. Bf4 {[%clk 0:02:55.5]} 7... Qe8 {[%clk 0:03:03.2]} 8. d5 {[%clk 0:02:55.6]}
8... e5 {[%clk 0:02:55]} 9. dxe6 {[%clk 0:02:55.8]} 9... Bxe6 {[%clk 0:02:54]}
10. Nd4 {[%clk 0:02:52.2]} 10... Nc6 {[%clk 0:02:54]} 11. Nxe6 {[%clk
0:02:50.9]} 11... Qxe6 {[%clk 0:02:55.2]} 12. Nd5 {[%clk 0:02:52.2]} 12... Qd7
{[%clk 0:02:52.4]} 13. O-O {[%clk 0:02:50.7]} 13... Rae8 {[%clk 0:02:45.7]} 14.
e3 {[%clk 0:02:49.5]} 14... Ne4 {[%clk 0:02:45.9]} 15. Qc2 {[%clk 0:02:46.8]}
15... a5 {[%clk 0:02:44.9]} 16. a3 {[%clk 0:02:46.8]} 16... h6 {[%clk
0:02:38.4]} 17. Rab1 {[%clk 0:02:45.4]} 17... g5 {[%clk 0:02:38.7]} 18. Rfd1
{[%clk 0:02:21.5]} 18... gxf4 {[%clk 0:02:36.3]} 19. Nxf4 {[%clk 0:02:23.4]}
19... Qf7 {[%clk 0:02:28.3]} 20. c5 {[%clk 0:02:23.6]} 20... Be5 {[%clk
0:02:25.7]} 21. Nd5 {[%clk 0:02:22.4]} 21... Nxc5 {[%clk 0:02:22.5]} 22. b4
{[%clk 0:02:18.3]} 22... axb4 {[%clk 0:02:23.2]} 23. axb4 {[%clk 0:02:20.1]}
23... Ne4 {[%clk 0:02:18.6]} 24. Bxe4 {[%clk 0:02:20.2]} 24... fxe4 {[%clk
0:02:19.2]} 25. b5 {[%clk 0:02:21.2]} 25... Ne7 {[%clk 0:02:16.3]} 26. Nxc7
{[%clk 0:02:21.1]} 26... Rc8 {[%clk 0:02:16.6]} 27. b6 {[%clk 0:02:21.2]} 27...
d5 {[%clk 0:02:16.6]} 28. Qa4 {[%clk 0:02:17.8]} 28... Qxf2+ {[%clk 0:02:16.4]}
29. Kh1 {[%clk 0:02:17.9]} 29... Qf3+ {[%clk 0:02:17.1]} 30. Kg1 {[%clk
0:02:17.3]} 30... Qxe3+ {[%clk 0:02:18.1]} 31. Kh1 {[%clk 0:02:18.7]} 31... Qf3+
{[%clk 0:02:19.1]} 32. Kg1 {[%clk 0:02:19.6]} 32... Bxg3 {[%clk 0:02:02.7]} 33.
hxg3 {[%clk 0:02:14.5]} 33... Qxg3+ {[%clk 0:02:03.7]} 34. Kh1 {[%clk
0:02:15.6]} 34... Rf5 {[%clk 0:01:54.7]} 0-1

[Event "*** Titled Tuesday Blitz AM"]
[Site "Chess.com"]
[Date "2020.01.07"]
[Round "3"]
[White "CuteRook"]
[Black "szefru"]
[Result "1-0"]
[WhiteElo "2381"]
[BlackElo "2108"]
[TimeControl "180+2"]
[EndTime "9:33:58 PST"]
[Termination "CuteRook won by resignation"]

1. d4 {[%clk 0:02:52.6]} 1... Nf6 {[%clk 0:02:58.4]} 2. Nf3 {[%clk 0:02:53.7]}
2... g6 {[%clk 0:02:58.7]} 3. g3 {[%clk 0:02:54.1]} 3... Bg7 {[%clk 0:03:00.6]}
4. Bg2 {[%clk 0:02:56]} 4... O-O {[%clk 0:03:02.3]} 5. O-O {[%clk 0:02:57.9]}
5... d6 {[%clk 0:03:03.1]} 6. b3 {[%clk 0:02:59.4]} 6... Nc6 {[%clk 0:03:01.8]}
7. Bb2 {[%clk 0:02:59.9]} 7... Re8 {[%clk 0:03:02]} 8. c4 {[%clk 0:03:00.5]}
8... e5 {[%clk 0:03:02.8]} 9. dxe5 {[%clk 0:03:01.7]} 9... Ng4 {[%clk
0:02:55.3]} 10. Nc3 {[%clk 0:03:01.9]} 10... Ncxe5 {[%clk 0:02:54.8]} 11. Nxe5
{[%clk 0:03:03.2]} 11... Nxe5 {[%clk 0:02:54.6]} 12. Kh1 {[%clk 0:02:54.1]}
12... c6 {[%clk 0:02:44.3]} 13. Ne4 {[%clk 0:02:49.6]} 13... d5 {[%clk
0:02:41.5]} 14. cxd5 {[%clk 0:02:50]} 14... cxd5 {[%clk 0:02:42.6]} 15. Nc5
{[%clk 0:02:48.9]} 15... Qd6 {[%clk 0:01:46.7]} 16. Qd4 {[%clk 0:02:46.2]} 16...
b6 {[%clk 0:01:31.2]} 17. Bxd5 {[%clk 0:02:43.7]} 17... bxc5 {[%clk 0:01:28.2]}
18. Bxf7+ {[%clk 0:02:23.5]} 18... Kxf7 {[%clk 0:01:07.8]} 19. Qxd6 {[%clk
0:02:23.9]} 19... Bb7+ {[%clk 0:01:08.8]} 20. Kg1 {[%clk 0:02:21.4]} 20... Nf3+
{[%clk 0:01:05]} 21. exf3 {[%clk 0:02:20.5]} 21... Bxb2 {[%clk 0:01:06.2]} 22.
Rae1 {[%clk 0:02:13.4]} 22... Bd4 {[%clk 0:00:54.9]} 23. Qc7+ {[%clk 0:02:12.3]}
1-0

[Event "*** Titled Tuesday Blitz AM"]
[Site "Chess.com"]
[Date "2020.01.07"]
[Round "3"]
[White "Alex_Molchanov"]
[Black "smshk35"]
[Result "1-0"]
[WhiteElo "2608"]
[BlackElo "2339"]
[TimeControl "180+2"]
[EndTime "9:34:00 PST"]
[Termination "Alex_Molchanov won by resignation"]

1. d4 {[%clk 0:03:01.9]} 1... Nf6 {[%clk 0:03:00.7]} 2. Nf3 {[%clk 0:03:02.2]}
2... g6 {[%clk 0:03:01.2]} 3. g3 {[%clk 0:03:03.3]} 3... Bg7 {[%clk 0:03:01.9]}
4. Bg2 {[%clk 0:03:03.2]} 4... O-O {[%clk 0:03:03.1]} 5. c4 {[%clk 0:03:04.8]}
5... d6 {[%clk 0:03:03.7]} 6. O-O {[%clk 0:03:06.3]} 6... c6 {[%clk 0:03:04.8]}
7. Nc3 {[%clk 0:03:07.4]} 7... Bf5 {[%clk 0:03:05.7]} 8. Ne1 {[%clk 0:03:06.1]}
8... Be6 {[%clk 0:02:53.3]} 9. b3 {[%clk 0:02:55.9]} 9... d5 {[%clk 0:02:53.9]}
10. cxd5 {[%clk 0:02:45.1]} 10... cxd5 {[%clk 0:02:53]} 11. Nd3 {[%clk 0:02:41]}
11... Bc8 {[%clk 0:02:47]} 12. Bg5 {[%clk 0:02:37.4]} 12... e6 {[%clk
0:02:47.1]} 13. Rc1 {[%clk 0:02:35]} 13... h6 {[%clk 0:02:44.6]} 14. Bxf6 {[%clk
0:02:17.9]} 14... Qxf6 {[%clk 0:02:45]} 15. e3 {[%clk 0:02:19.8]} 15... b6
{[%clk 0:02:42.5]} 16. Nxd5 {[%clk 0:02:05.8]} 16... exd5 {[%clk 0:02:39.3]} 17.
Bxd5 {[%clk 0:02:07.7]} 17... Nd7 {[%clk 0:02:18.9]} 18. Bxa8 {[%clk 0:02:06.2]}
18... Ba6 {[%clk 0:02:19.9]} 19. Bc6 {[%clk 0:01:50.2]} 19... Qd6 {[%clk
0:02:17.4]} 20. Re1 {[%clk 0:01:35.6]} 20... Nf6 {[%clk 0:02:02.2]} 21. Ne5
{[%clk 0:01:29.2]} 21... Rc8 {[%clk 0:02:02.9]} 22. Qf3 {[%clk 0:01:24]} 22...
Qe6 {[%clk 0:02:01.4]} 23. Bb7 {[%clk 0:01:19.1]} 23... Bxb7 {[%clk 0:01:52.2]}
24. Qxb7 {[%clk 0:01:19]} 24... Rxc1 {[%clk 0:01:48.5]} 25. Rxc1 {[%clk
0:01:20.9]} 25... Nd5 {[%clk 0:01:49.8]} 26. Qc8+ {[%clk 0:01:11.8]} 26... Qxc8
{[%clk 0:01:48]} 27. Rxc8+ {[%clk 0:01:13.7]} 1-0

[Event "*** Titled Tuesday Blitz AM"]
[Site "Chess.com"]
[Date "2020.01.07"]
[Round "3"]
[White "alex_zapata"]
[Black "esskeettit"]
[Result "0-1"]
[WhiteElo "2294"]
[BlackElo "2451"]
[TimeControl "180+2"]
[EndTime "9:34:02 PST"]
[Termination "esskeettit won by resignation"]

1. e4 {[%clk 0:03:01.9]} 1... c5 {[%clk 0:02:58.2]} 2. Nf3 {[%clk 0:03:00.7]}
2... Nc6 {[%clk 0:02:58.3]} 3. d4 {[%clk 0:03:01.8]} 3... cxd4 {[%clk
0:02:58.5]} 4. Nxd4 {[%clk 0:03:03.7]} 4... g6 {[%clk 0:02:59.1]} 5. Nc3 {[%clk
0:03:04.4]} 5... Bg7 {[%clk 0:02:59.2]} 6. Be3 {[%clk 0:03:05.6]} 6... Nf6
{[%clk 0:02:59.8]} 7. Nxc6 {[%clk 0:03:03.5]} 7... bxc6 {[%clk 0:02:33.8]} 8. e5
{[%clk 0:03:02]} 8... Ng8 {[%clk 0:02:14]} 9. f4 {[%clk 0:03:02.2]} 9... Nh6
{[%clk 0:01:57.5]} 10. Qd2 {[%clk 0:03:02.8]} 10... Nf5 {[%clk 0:01:55.8]} 11.
Bf2 {[%clk 0:03:02.4]} 11... h5 {[%clk 0:01:51.4]} 12. O-O-O {[%clk 0:03:01.9]}
12... d5 {[%clk 0:01:44.9]} 13. Bd3 {[%clk 0:02:52.8]} 13... Qa5 {[%clk
0:01:25.3]} 14. h3 {[%clk 0:02:28]} 14... h4 {[%clk 0:01:20]} 15. Qe1 {[%clk
0:02:25.9]} 15... Bh6 {[%clk 0:01:05.4]} 16. Qd2 {[%clk 0:02:03]} 16... Qb4
{[%clk 0:00:51.5]} 17. Ne2 {[%clk 0:01:58]} 17... Qa4 {[%clk 0:00:46]} 18. Kb1
{[%clk 0:01:54.7]} 18... Rb8 {[%clk 0:00:43.5]} 19. Be4 {[%clk 0:01:50.7]} 19...
Qxe4 {[%clk 0:00:37.5]} 0-1

[Event "*** Titled Tuesday Blitz AM"]
[Site "Chess.com"]
[Date "2020.01.07"]
[Round "3"]
[White "Ovsiannikov_Maxim"]
[Black "crazy_machine"]
[Result "0-1"]
[WhiteElo "2424"]
[BlackElo "2676"]
[TimeControl "180+2"]
[EndTime "9:34:33 PST"]
[Termination "crazy_machine won by resignation"]

1. d4 {[%clk 0:02:59.4]} 1... Nf6 {[%clk 0:03:00.7]} 2. Bg5 {[%clk 0:02:59.8]}
2... d6 {[%clk 0:02:59]} 3. Nd2 {[%clk 0:02:57.9]} 3... Nbd7 {[%clk 0:02:59.8]}
4. e4 {[%clk 0:02:58.7]} 4... h6 {[%clk 0:03:00.5]} 5. Bh4 {[%clk 0:02:59.5]}
5... g6 {[%clk 0:03:01.8]} 6. Ngf3 {[%clk 0:02:58.9]} 6... c6 {[%clk 0:03:02.8]}
7. Bd3 {[%clk 0:02:59.7]} 7... Bg7 {[%clk 0:03:03.6]} 8. O-O {[%clk 0:03:01.2]}
8... O-O {[%clk 0:03:04.3]} 9. Re1 {[%clk 0:03:00.5]} 9... e5 {[%clk 0:03:05.3]}
10. c3 {[%clk 0:03:01.4]} 10... Qe7 {[%clk 0:03:06.1]} 11. dxe5 {[%clk
0:02:50.9]} 11... Nxe5 {[%clk 0:03:07]} 12. Nxe5 {[%clk 0:02:50.5]} 12... dxe5
{[%clk 0:03:07.9]} 13. Nf3 {[%clk 0:02:51.1]} 13... g5 {[%clk 0:02:58.7]} 14.
Bg3 {[%clk 0:02:51.9]} 14... Nh5 {[%clk 0:02:54.8]} 15. Bc4 {[%clk 0:02:50.7]}
15... Nxg3 {[%clk 0:02:53.2]} 16. hxg3 {[%clk 0:02:51.6]} 16... Bg4 {[%clk
0:02:54.6]} 17. Qb3 {[%clk 0:02:48.9]} 17... b5 {[%clk 0:02:47.1]} 18. Bf1
{[%clk 0:02:47.9]} 18... Qf6 {[%clk 0:02:46.8]} 19. Nh2 {[%clk 0:02:43.1]} 19...
Be6 {[%clk 0:02:47.3]} 20. Qc2 {[%clk 0:02:43.6]} 20... Rfd8 {[%clk 0:02:44.6]}
21. Red1 {[%clk 0:02:44.5]} 21... g4 {[%clk 0:02:42.1]} 22. Be2 {[%clk
0:02:43.5]} 22... h5 {[%clk 0:02:42.4]} 23. Nf1 {[%clk 0:02:44.6]} 23... h4
{[%clk 0:02:41.5]} 24. gxh4 {[%clk 0:02:44.4]} 24... Qxh4 {[%clk 0:02:43.4]} 25.
g3 {[%clk 0:02:43.4]} 25... Qh5 {[%clk 0:02:40.6]} 26. Rxd8+ {[%clk 0:02:43.2]}
26... Rxd8 {[%clk 0:02:41.2]} 27. Rd1 {[%clk 0:02:44.9]} 27... Rc8 {[%clk
0:02:31.6]} 28. b3 {[%clk 0:02:43.9]} 28... Bf6 {[%clk 0:02:30.4]} 29. Ne3
{[%clk 0:02:41.8]} 29... Kg7 {[%clk 0:02:30.9]} 30. Bf1 {[%clk 0:02:26.3]} 30...
Bg5 {[%clk 0:02:31]} 31. Nf5+ {[%clk 0:02:25.5]} 31... Kf6 {[%clk 0:02:27.1]}
32. Bg2 {[%clk 0:02:22.3]} 32... Qh7 {[%clk 0:02:22.3]} 33. Nd6 {[%clk
0:02:11.6]} 33... Rd8 {[%clk 0:02:21.4]} 34. c4 {[%clk 0:02:11.5]} 34... b4
{[%clk 0:02:15.5]} 35. c5 {[%clk 0:02:12.2]} 35... a5 {[%clk 0:02:07.8]} 36. Nb7
{[%clk 0:02:05.5]} 36... Ra8 {[%clk 0:01:59]} 37. Rd8 {[%clk 0:01:54.6]} 37...
Ra7 {[%clk 0:01:51.2]} 38. Nd6 {[%clk 0:01:51.4]} 38... Kg6 {[%clk 0:01:42.5]}
39. Bf1 {[%clk 0:01:48.8]} 39... Bxd8 {[%clk 0:01:42.3]} 0-1

[Event "*** Titled Tuesday Blitz AM"]
[Site "Chess.com"]
[Date "2020.01.07"]
[Round "3"]
[White "Daniel-2003"]
[Black "Anton_Demchenko"]
[Result "1-0"]
[WhiteElo "2351"]
[BlackElo "2981"]
[TimeControl "180+2"]
[EndTime "9:34:53 PST"]
[Termination "Daniel-2003 won by resignation"]

1. e4 {[%clk 0:03:01.3]} 1... e5 {[%clk 0:02:59.2]} 2. Nf3 {[%clk 0:02:58.3]}
2... Nc6 {[%clk 0:03:00.2]} 3. Bc4 {[%clk 0:02:59.4]} 3... Nf6 {[%clk 0:03:01]}
4. d3 {[%clk 0:02:57.1]} 4... Be7 {[%clk 0:03:01.8]} 5. O-O {[%clk 0:02:58.5]}
5... O-O {[%clk 0:03:03]} 6. c3 {[%clk 0:02:56.5]} 6... d6 {[%clk 0:03:03.8]} 7.
Nbd2 {[%clk 0:02:54.1]} 7... Kh8 {[%clk 0:03:00.7]} 8. Bb3 {[%clk 0:02:44]} 8...
Ng8 {[%clk 0:03:01.2]} 9. d4 {[%clk 0:02:42.2]} 9... Bg4 {[%clk 0:03:01.7]} 10.
h3 {[%clk 0:02:39.2]} 10... Bh5 {[%clk 0:03:02.3]} 11. g4 {[%clk 0:02:37.4]}
11... Bg6 {[%clk 0:03:03.4]} 12. Qe2 {[%clk 0:02:35.2]} 12... exd4 {[%clk
0:02:44]} 13. Nxd4 {[%clk 0:02:34.1]} 13... Nxd4 {[%clk 0:02:36.3]} 14. cxd4
{[%clk 0:02:33.9]} 14... d5 {[%clk 0:02:22.2]} 15. e5 {[%clk 0:02:28.9]} 15...
f5 {[%clk 0:02:09.6]} 16. f4 {[%clk 0:02:26.2]} 16... c5 {[%clk 0:02:04.7]} 17.
Nf3 {[%clk 0:02:23.6]} 17... Qc8 {[%clk 0:01:53.6]} 18. g5 {[%clk 0:02:21]}
18... cxd4 {[%clk 0:01:48.6]} 19. Nxd4 {[%clk 0:02:18.5]} 19... Bc5 {[%clk
0:01:45.6]} 20. Be3 {[%clk 0:02:19.1]} 20... Ne7 {[%clk 0:01:47]} 21. Rac1
{[%clk 0:02:16.7]} 21... b6 {[%clk 0:01:48.5]} 22. Nb5 {[%clk 0:02:07.6]} 22...
Bh5 {[%clk 0:01:12.7]} 23. Qf2 {[%clk 0:02:03.7]} 23... Bxe3 {[%clk 0:00:46.1]}
24. Qxe3 {[%clk 0:02:05.6]} 24... Qd7 {[%clk 0:00:43.8]} 25. Nd6 {[%clk
0:02:01.9]} 25... Rad8 {[%clk 0:00:32.2]} 26. Qd4 {[%clk 0:02:00.9]} 26... h6
{[%clk 0:00:20.4]} 27. gxh6 {[%clk 0:01:59.8]} 27... gxh6 {[%clk 0:00:21.5]} 28.
e6+ {[%clk 0:01:59.7]} 1-0

[Event "*** Titled Tuesday Blitz AM"]
[Site "Chess.com"]
[Date "2020.01.07"]
[Round "3"]
[White "levallem"]
[Black "FearlessKing64"]
[Result "1/2-1/2"]
[WhiteElo "2182"]
[BlackElo "2385"]
[TimeControl "180+2"]
[EndTime "9:34:55 PST"]
[Termination "Game drawn by agreement"]

1. d4 {[%clk 0:02:56.7]} 1... Nf6 {[%clk 0:02:59.9]} 2. c4 {[%clk 0:02:57.9]}
2... g6 {[%clk 0:03:01.5]} 3. Nc3 {[%clk 0:02:59.1]} 3... d5 {[%clk 0:03:02.9]}
4. cxd5 {[%clk 0:02:59.8]} 4... Nxd5 {[%clk 0:03:04]} 5. e4 {[%clk 0:02:59.5]}
5... Nxc3 {[%clk 0:03:05.1]} 6. bxc3 {[%clk 0:03:01.2]} 6... Bg7 {[%clk
0:03:06.9]} 7. Qa4+ {[%clk 0:02:56.2]} 7... Qd7 {[%clk 0:03:05.6]} 8. Qxd7+
{[%clk 0:02:51.5]} 8... Bxd7 {[%clk 0:03:05.3]} 9. Be3 {[%clk 0:02:53]} 9... c5
{[%clk 0:03:06.6]} 10. Nf3 {[%clk 0:02:45.6]} 10... Nc6 {[%clk 0:02:58.3]} 11.
Rd1 {[%clk 0:02:34.4]} 11... O-O {[%clk 0:02:21.2]} 12. Be2 {[%clk 0:02:24.4]}
12... Rac8 {[%clk 0:02:08.7]} 13. O-O {[%clk 0:02:23.2]} 13... cxd4 {[%clk
0:02:09.3]} 14. cxd4 {[%clk 0:02:23.9]} 14... Nb4 {[%clk 0:02:05.6]} 15. Rd2
{[%clk 0:02:24.1]} 15... Nc2 {[%clk 0:02:00.3]} 16. Rb1 {[%clk 0:02:22.5]} 16...
Nxe3 {[%clk 0:01:57]} 17. fxe3 {[%clk 0:02:22.9]} 17... b6 {[%clk 0:01:57.7]}
18. Bd3 {[%clk 0:02:15.6]} 18... Rc3 {[%clk 0:01:52.9]} 19. Kf2 {[%clk
0:02:13.2]} 19... Rfc8 {[%clk 0:01:53.1]} 20. e5 {[%clk 0:02:12.4]} 20... e6
{[%clk 0:01:51.9]} 21. Rbb2 {[%clk 0:02:08.7]} 21... Bf8 {[%clk 0:01:44.3]} 22.
Ng5 {[%clk 0:02:07.2]} 22... Ba3 {[%clk 0:01:39.4]} 23. Rbc2 {[%clk 0:01:47.9]}
23... Bc1 {[%clk 0:01:32.6]} 24. Rxc3 {[%clk 0:01:43.2]} 24... Rxc3 {[%clk
0:01:33.1]} 25. Rc2 {[%clk 0:01:40.9]} 25... Rxc2+ {[%clk 0:01:28]} 26. Bxc2
{[%clk 0:01:41.2]} 26... h5 {[%clk 0:01:13.8]} 27. Ne4 {[%clk 0:01:40.5]} 27...
Kf8 {[%clk 0:01:12.3]} 28. Bd3 {[%clk 0:01:29.4]} 28... Ke7 {[%clk 0:01:08]} 29.
Nd6 {[%clk 0:01:27.1]} 29... Ba3 {[%clk 0:01:04.9]} 30. Nb5 {[%clk 0:01:25.8]}
30... Bxb5 {[%clk 0:01:04.2]} 31. Bxb5 {[%clk 0:01:27.7]} 1/2-1/2

[Event "*** Titled Tuesday Blitz AM"]
[Site "Chess.com"]
[Date "2020.01.07"]
[Round "3"]
[White "Saloni1299"]
[Black "dianosky"]
[Result "1-0"]
[WhiteElo "2074"]
[BlackElo "2313"]
[TimeControl "180+2"]
[EndTime "9:35:03 PST"]
[Termination "Saloni1299 won by resignation"]

1. e4 {[%clk 0:03:01.9]} 1... c5 {[%clk 0:03:00.3]} 2. Nf3 {[%clk 0:02:58]} 2...
a6 {[%clk 0:03:01.5]} 3. c3 {[%clk 0:02:57]} 3... b6 {[%clk 0:02:58.8]} 4. d4
{[%clk 0:02:57.5]} 4... Bb7 {[%clk 0:02:59.2]} 5. Bd3 {[%clk 0:02:58.1]} 5...
Qc7 {[%clk 0:02:59.9]} 6. O-O {[%clk 0:02:56.6]} 6... e6 {[%clk 0:03:01.2]} 7.
Qe2 {[%clk 0:02:49.8]} 7... d6 {[%clk 0:03:01.4]} 8. Bf4 {[%clk 0:02:49.6]} 8...
Nd7 {[%clk 0:03:01.7]} 9. Nbd2 {[%clk 0:02:49.3]} 9... e5 {[%clk 0:02:53.5]} 10.
Bg3 {[%clk 0:02:48.6]} 10... b5 {[%clk 0:02:54.4]} 11. a4 {[%clk 0:02:43.7]}
11... c4 {[%clk 0:02:54.3]} 12. Bc2 {[%clk 0:02:43.2]} 12... Be7 {[%clk
0:02:49.8]} 13. Nh4 {[%clk 0:02:29]} 13... Bxh4 {[%clk 0:02:39.8]} 14. Bxh4
{[%clk 0:02:26.6]} 14... Ngf6 {[%clk 0:02:41.3]} 15. f4 {[%clk 0:02:22.2]} 15...
O-O {[%clk 0:02:28.8]} 16. fxe5 {[%clk 0:02:18.5]} 16... dxe5 {[%clk 0:02:29.6]}
17. d5 {[%clk 0:02:19.6]} 17... Kh8 {[%clk 0:02:15.8]} 18. Nf3 {[%clk
0:02:08.4]} 18... Nh5 {[%clk 0:01:39.1]} 19. g3 {[%clk 0:01:49.7]} 19... h6
{[%clk 0:01:35.3]} 20. Be7 {[%clk 0:01:44.2]} 20... Rfe8 {[%clk 0:01:35.2]} 21.
d6 {[%clk 0:01:45]} 21... Qb6+ {[%clk 0:01:35.5]} 22. Kh1 {[%clk 0:01:34.3]}
22... Qc5 {[%clk 0:01:28.9]} 23. Nh4 {[%clk 0:01:32.7]} 23... Nhf6 {[%clk
0:01:28.3]} 24. Nf5 {[%clk 0:01:33.2]} 24... Qc6 {[%clk 0:01:03.6]} 25. Rae1
{[%clk 0:01:25.4]} 25... Nc5 {[%clk 0:01:01.5]} 26. Bxf6 {[%clk 0:01:23.8]}
26... gxf6 {[%clk 0:00:57.1]} 27. Qh5 {[%clk 0:01:23.8]} 1-0